fUSD/lending_fUSD_20240826
["ID","MTS","AMOUNT","RATE_DAILY","PERIOD"]
[336024082,1724669591557,-639.71116418,0.00010999,2]
[336024083,1724669591567,-6599.55,0.00010999,2]
[336024084,1724669591580,-2777.47,0.00010999,2]
[336024085,1724669591591,-6599.55,0.00010999,2]
[336024086,1724669591603,-2777.47,0.00010999,2]
[336024087,1724669591615,-6599.55,0.00010999,2]
[336024088,1724669591626,-2777.47,0.00010999,2]
[336024089,1724669591638,-500.0,0.00010999,2]
[336024090,1724669591649,-6599.55,0.00010999,2]
[336024091,1724669591661,-2777.47,0.00010999,2]
[336024092,1724669591672,-500.0,0.00010999,2]
[336024093,1724669591683,-6599.55,0.00010999,2]
[336024094,1724669591694,-500.0,0.00010999,2]
[336024095,1724669591706,-6599.55,0.00010999,2]
[336024096,1724669591719,-500.0,0.00010999,2]
[336024097,1724669591730,-6599.55,0.00010999,2]
[336024098,1724669591742,-2777.47,0.00010999,2]
[336024099,1724669591754,-500.0,0.00010999,2]
[336024100,1724669591766,-2777.47,0.00010999,2]
[336024101,1724669591778,-500.0,0.00010999,2]
[336024102,1724669591789,-2777.47,0.00010999,2]
[336024103,1724669591800,-500.0,0.00010999,2]
[336024104,1724669591811,-6599.55,0.00010999,2]
[336024105,1724669591821,-2777.47,0.00010999,2]
[336024106,1724669591831,-2777.47,0.00010999,2]
[336024107,1724669591841,-500.0,0.00010999,2]
[336024108,1724669591851,-6599.55,0.00010999,2]
[336024109,1724669591862,-2777.47,0.00010999,2]
[336024110,1724669591872,-500.0,0.00010999,2]
[336024111,1724669591882,-6599.55,0.00010999,2]
[336024112,1724669591895,-500.0,0.00010999,2]
[336024113,1724669591906,-6599.55,0.00010999,2]
[336024114,1724669591916,-2777.47,0.00010999,2]
[336024115,1724669591926,-500.0,0.00010999,2]
[336024116,1724669591937,-6599.55,0.00010999,2]
[336024117,1724669591947,-2777.47,0.00010999,2]
[336024118,1724669591957,-377.52,0.00010999,2]
[336024119,1724669591967,-6599.55,0.00010999,2]
[336024120,1724669591977,-3416.75254,0.00010999,2]
[336024121,1724669591987,-2777.47,0.00010999,2]
[336024122,1724669591997,-6599.55,0.00010999,2]
[336024123,1724669592008,-3416.75254,0.00010999,2]
[336024124,1724669592018,-6599.55,0.00010999,2]
[336024125,1724669592028,-2777.47,0.00010999,2]
[336024126,1724669592039,-3416.75254,0.00010999,2]
[336024127,1724669592048,-6599.55,0.00010999,2]
[336024128,1724669592058,-2777.47,0.00010999,2]
[336024129,1724669592068,-3416.75254,0.00010999,2]
[336024130,1724669592079,-6599.55,0.00010999,2]
[336024131,1724669592090,-2777.47,0.00010999,2]
[336024132,1724669592100,-3416.75254,0.00010999,2]
[336024133,1724669592110,-6599.55,0.00010999,2]
[336024134,1724669592120,-2777.47,0.00010999,2]
[336024135,1724669592131,-6599.55,0.00010999,2]
[336024136,1724669592141,-1256.852613,0.00010999,2]
[336024137,1724669592151,-6599.55,0.00010999,2]
[336024138,1724669592161,-1256.852613,0.00010999,2]
[336024139,1724669592171,-500.0,0.00010999,2]
[336024140,1724669592181,-6599.55,0.00010999,2]
[336024141,1724669592192,-1256.852613,0.00010999,2]
[336024142,1724669592203,-500.0,0.00010999,2]
[336024143,1724669592214,-500.0,0.00010999,2]
[336024144,1724669592224,-6599.55,0.00010999,2]
[336024145,1724669592236,-500.0,0.00010999,2]
[336024146,1724669592247,-500.0,0.00010999,2]
[336024147,1724669592258,-6599.55,0.00010999,2]
[336024148,1724669592269,-1256.852613,0.00010999,2]
[336024149,1724669592279,-500.0,0.00010999,2]
[336024150,1724669592292,-3416.75254,0.00010999,2]
[336024151,1724669592302,-1256.852613,0.00010999,2]
[336024152,1724669592313,-500.0,0.00010999,2]
[336024153,1724669592322,-500.0,0.00010999,2]
[336024154,1724669592334,-500.0,0.00010999,2]
[336024155,1724669592344,-500.0,0.00010999,2]
[336024156,1724669592354,-6599.77246137,0.00010999,2]
[336024157,1724669592364,-500.0,0.00010999,2]
[336024158,1724669592374,-3416.75254,0.00010999,2]
[336024159,1724669592385,-500.0,0.00010999,2]
[336024160,1724669592395,-500.0,0.00010999,2]
[336024161,1724669592405,-575.84208649,0.00010999,2]
[336024162,1724669592415,-3416.75254,0.00010999,2]
[336024163,1724669592425,-500.0,0.00010999,2]
[336024164,1724669592435,-500.0,0.00010999,2]
[336024165,1724669592445,-3416.75254,0.00010999,2]
[336024166,1724669592454,-500.0,0.00010999,2]
[336024167,1724669592464,-500.0,0.00010999,2]
[336024168,1724669592474,-537.90815274,0.00010999,2]
[336024169,1724669592484,-3416.752534,0.00010999,2]
[336024170,1724669592494,-500.0,0.00010999,2]
[336024171,1724669592504,-1256.852613,0.00010999,2]
[336024172,1724669592514,-500.0,0.00010999,2]
[336024173,1724669592524,-1256.852613,0.00010999,2]
[336024174,1724669592534,-500.0,0.00010999,2]
[336024175,1724669592544,-500.0,0.00010999,2]
[336024176,1724669592554,-1256.852613,0.00010999,2]
[336024177,1724669592564,-500.0,0.00010999,2]
[336024178,1724669592574,-2777.61294711,0.00010999,2]
[336024179,1724669592591,-1256.852613,0.00010999,2]
[336024180,1724669592601,-500.0,0.00010999,2]
[336024181,1724669592611,-1256.85261789,0.00010999,2]
[336024182,1724669592621,-500.0,0.00010999,2]
[336024183,1724669592630,-500.0,0.00010999,2]
[336024184,1724669592640,-500.0,0.00010999,2]
[336024185,1724669592649,-500.0,0.00010999,2]
[336024186,1724669592659,-500.0,0.00010999,2]
[336024187,1724669592669,-520.36219453,0.00010999,2]
[336024188,1724669592679,-500.0,0.00010999,2]
[336024189,1724669592688,-500.0,0.00010999,2]
[336024190,1724669592698,-500.0,0.00010999,2]
[336024191,1724669592708,-193.12,0.00010999,2]
[336024192,1724669592717,-1544.0,0.00011,2]
[336024193,1724669592728,-1923.0,0.00011,2]
[336024194,1724669592738,-1259.0,0.00011,2]
[336024195,1724669592748,-623.0,0.00011,2]
[336024196,1724669592758,-1138.0,0.00011,2]
[336024197,1724669592768,-447.0,0.00011,2]
[336024198,1724669592778,-810.0,0.00011,2]
[336024199,1724669592788,-556.0,0.00011,2]
[336024200,1724669592798,-552.0,0.00011,2]
[336024201,1724669592809,-1897.0,0.00011,2]
[336024202,1724669592819,-3321.0,0.00011,2]
[336024203,1724669592828,-1044.94,0.00011,2]
[336024204,1724669592839,-397.968,0.00011,2]
[336024205,1724669593466,-157.364,0.00011,2]
[336024206,1724669593489,-1675.0,0.00011,2]
[336024207,1724669593500,-153.0,0.00011,2]
[336024208,1724669593511,-150.612,0.00011,2]
[336024209,1724669593521,-5844.0,0.00011,2]
[336024210,1724669593530,-286.683,0.00011,2]
[336024211,1724669593540,-150.0,0.00011,2]
[336024212,1724669593549,-3729.0,0.00011,2]
[336024213,1724669593559,-1204.0,0.00011,2]
[336024214,1724669593568,-289.0,0.00011,2]
[336024215,1724669593578,-13454.0,0.00011,2]
[336024216,1724669593588,-1077.0,0.00011,2]
[336024217,1724669593597,-500.0,0.00011,2]
[336024218,1724669593606,-500.0,0.00011,2]
[336024219,1724669593615,-500.0,0.00011,2]
[336024220,1724669593625,-500.0,0.00011,2]
[336024221,1724669593634,-500.0,0.00011,2]
[336024222,1724669593644,-500.0,0.00011,2]
[336024223,1724669593654,-11354164.35876478,0.00011,2]
[336024224,1724669593664,-12087.80524589,0.00011,2]
[336024225,1724669593673,-2594104.69937426,0.00011,2]
[336024226,1724669594594,-837.1615839,0.00011,2]
[336024227,1724669594607,-642.34459641,0.00011,2]
[336024228,1724669594619,-1221.72,0.00011,2]
[336024229,1724669594631,-456.80005735,0.00011,2]
[336024230,1724669594643,-270.462826,0.00011,2]
[336024231,1724669594655,-1748.9835148,0.00011,2]
[336024232,1724669594668,-2192.36880359,0.00011,2]
[336024233,1724669594680,-8389.97443203,0.00011,2]
[336024234,1724669594691,-1073.61091901,0.00011,2]
[336024235,1724669594704,-1671.41068553,0.00011,2]
[336024236,1724669594722,-6646.89595268,0.00011,2]
[336024237,1724669594734,-515.25,0.00011,2]
[336024238,1724669594746,-2635.15652636,0.00011,2]
[336024239,1724669594759,-1408.82174182,0.00011,2]
[336024240,1724669594776,-811.89,0.00010998,2]
[336024241,1724669594786,-451618.31922664,0.00011,2]
[336024242,1724669594799,-690.60504577,0.00011,2]
[336024243,1724669594821,-510.9305077,0.00010997,2]
[336024244,1724669594833,-862.0594923,0.00010997,2]
[336024245,1724669594842,-171.53771693,0.00010998,2]
[336024246,1724669594858,-328.46228307,0.00010998,2]
[336024247,1724669594867,-4177.60030314,0.00011,2]
[336024248,1724669594879,-873.80203649,0.00011,2]
[336024249,1724669594890,-1292.12635579,0.00011,2]
[336024250,1724669594905,-1066.88890096,0.00011,2]
[336024251,1724669596298,150.0,8.127e-05,2]
[336024252,1724669640033,455.96806569,9.164e-05,2]
[336024253,1724669649443,500.0,9.164e-05,2]
[336024254,1724669656275,600.0,9.164e-05,2]
[336024255,1724669659166,500.0,9.164e-05,2]
[336024256,1724669697898,200.0,9.985e-05,2]
[336024257,1724669707903,533.36,8.219e-05,2]
[336024258,1724669728120,23900.0,9.995e-05,2]
[336024259,1724669779058,200.0,9.98e-05,2]
[336024260,1724669815455,172.77,9.979e-05,2]
[336024261,1724670010927,200.92,9.964e-05,2]
[336024262,1724670105722,170271.45342142,9.9e-05,2]
[336024263,1724670122912,169.74,9.93e-05,2]
[336024264,1724670252729,250.0,9.916e-05,2]
[336024265,1724670275363,529.32,8.219e-05,2]
[336024266,1724670308388,887.56292452,9.888e-05,2]
[336024267,1724670308730,887.56292452,9.899e-05,2]
[336024268,1724670309078,887.56292452,9.91e-05,2]
[336024269,1724670309395,887.56292452,9.921e-05,2]
[336024270,1724670309735,887.56292452,9.932e-05,2]
[336024271,1724670310086,887.56292452,9.943e-05,2]
[336024272,1724670310424,887.56292452,9.954e-05,2]
[336024273,1724670310749,887.56292452,9.965e-05,2]
[336024274,1724670311082,887.56292452,9.976e-05,2]
[336024275,1724670311404,887.56292452,9.988e-05,2]
[336024276,1724670311727,887.56292452,9.999e-05,2]
[336024277,1724670312050,887.56292452,0.0001001,2]
[336024278,1724670321280,1000.0,9.605e-05,2]
[336024279,1724670348692,311.48939823,9.888e-05,2]
[336024280,1724670349451,311.48939823,9.899e-05,2]
[336024281,1724670349767,311.48939823,9.91e-05,2]
[336024282,1724670350093,311.48939823,9.921e-05,2]
[336024283,1724670350427,311.48939823,9.932e-05,2]
[336024284,1724670350761,311.48939823,9.943e-05,2]
[336024285,1724670351084,311.48939823,9.954e-05,2]
[336024286,1724670351411,311.48939823,9.965e-05,2]
[336024287,1724670351722,311.48939823,9.976e-05,2]
[336024288,1724670352044,311.48939823,9.988e-05,2]
[336024289,1724670352358,311.48939823,9.999e-05,2]
[336024290,1724670353350,311.48939823,0.0001001,2]
[336024291,1724670353878,989.8,9.962e-05,2]
[336024292,1724670367154,203.10130847,9.962e-05,2]
[336024293,1724670367188,1258.64665931,9.962e-05,2]
[336024294,1724670386548,150.0,9.888e-05,2]
[336024295,1724670389210,429.50734631,9.921e-05,2]
[336024296,1724670389695,150.0,9.888e-05,2]
[336024297,1724670395377,392.61063228,9.888e-05,2]
[336024298,1724670395764,392.61063228,9.899e-05,2]
[336024299,1724670396542,392.61063228,9.91e-05,2]
[336024300,1724670397020,392.61063228,9.921e-05,2]
[336024301,1724670397546,392.61063228,9.932e-05,2]
[336024302,1724670397854,392.61063228,9.943e-05,2]
[336024303,1724670398193,392.61063228,9.954e-05,2]
[336024304,1724670398521,392.61063228,9.965e-05,2]
[336024305,1724670398861,392.61063228,9.976e-05,2]
[336024306,1724670399192,392.61063228,9.988e-05,2]
[336024307,1724670399579,392.61063228,9.999e-05,2]
[336024308,1724670399894,392.61063228,0.0001001,2]
[336024309,1724670436866,150.0,9.888e-05,2]
[336024310,1724670439111,150.0,9.888e-05,2]
[336024311,1724670443620,150.0,9.888e-05,2]
[336024312,1724670443953,150.0,9.988e-05,2]
[336024330,1724670449917,150.0,9.888e-05,2]
[336024401,1724670453684,150.0,9.888e-05,2]
[336024418,1724670454036,150.0,9.903e-05,2]
[336024435,1724670454384,150.0,9.919e-05,2]
[336024450,1724670454703,150.0,9.935e-05,2]
[336024459,1724670455035,150.0,9.95e-05,2]
[336024474,1724670455379,150.0,9.966e-05,2]
[336024490,1724670455701,150.0,9.982e-05,2]
[336024510,1724670456146,150.0,9.998e-05,2]
[336024594,1724670458430,348.59259143,0.00010009,2]
[336024595,1724670458712,520.36219453,0.00010009,2]
[336024596,1724670482248,299.86151539,9.888e-05,2]
[336024597,1724670484171,150.0,9.888e-05,2]
[336024598,1724670484527,150.0,9.945e-05,2]
[336024599,1724670484846,150.0,0.00010003,2]
[336024600,1724670492863,150.0,9.888e-05,2]
[336024601,1724670495169,150.0,9.888e-05,2]
[336024602,1724670495478,150.0,9.949e-05,2]
[336024603,1724670495807,150.0,0.0001001,2]
[336024604,1724670503103,150.0,9.888e-05,2]
[336024610,1724670522012,233.32,9.297e-05,2]
[336024655,1724670632196,-150.0,0.00010013,2]
[336024656,1724670632207,-887.56292452,0.00010021,2]
[336024657,1724670632216,-311.48939823,0.00010021,2]
[336024658,1724670632225,-392.61063228,0.00010021,2]
[336024659,1724670632235,-265.5949628,0.00010026,2]
[336024660,1724670632245,-153.39,0.00010028,2]
[336024661,1724670632254,-150.0,0.00010029,2]
[336024662,1724670632263,-300.0,0.00010031,2]
[336024663,1724670632273,-300.0,0.00010031,2]
[336024664,1724670632282,-51.92902425,0.00010032,2]
[336024665,1724670632294,-835.63390027,0.00010032,2]
[336024666,1724670632303,-311.48939823,0.00010032,2]
[336024667,1724670632312,-183.24892956,0.00010032,2]
[336024668,1724670632360,-209.36170272,0.00010032,2]
[336024669,1724670632381,-887.56292452,0.00010043,2]
[336024670,1724670632400,-311.48939823,0.00010043,2]
[336024671,1724670632420,-392.61063228,0.00010043,2]
[336024672,1724670632442,-150.0,0.00010045,2]
[336024673,1724670632463,-887.56292452,0.00010054,2]
[336024674,1724670632484,-311.48939823,0.00010054,2]
[336024675,1724670632506,-392.61063228,0.00010054,2]
[336024676,1724670632528,-150.0,0.0001006,2]
[336024679,1724670632550,-625.43755402,0.0001006,2]
[336024681,1724670632575,-1898.30244598,0.0001006,2]
[336024683,1724670632585,-150.0,0.00010061,2]
[336024685,1724670632595,-887.56292452,0.00010065,2]
[336024688,1724670632604,-311.48939823,0.00010065,2]
[336024691,1724670632615,-392.61063228,0.00010065,2]
[336024694,1724670632624,-150.0,0.00010071,2]
[336024697,1724670632633,-150.0,0.00010071,2]
[336024698,1724670632643,-114.55586481,0.00010076,2]
[336024701,1724670632655,-35.44413519,0.00010076,2]
[336024703,1724670632665,-887.56292452,0.00010076,2]
[336024705,1724670632675,-311.48939823,0.00010076,2]
[336024707,1724670632685,-392.61063228,0.00010076,2]
[336024709,1724670632701,-887.56292452,0.00010087,2]
[336024711,1724670632710,-311.48939823,0.00010087,2]
[336024713,1724670632720,-392.61063228,0.00010087,2]
[336024716,1724670632730,-150.0,0.00010087,2]
[336024717,1724670632739,-150.0,0.00010092,2]
[336024718,1724670632749,-300.73352801,0.00010097,2]
[336024719,1724670632759,-155.0,0.00010097,2]
[336024720,1724670632769,-822.08121059,0.00010099,2]
[336024721,1724670632782,-65.48171393,0.00010099,2]
[336024722,1724670632793,-311.48939823,0.00010099,2]
[336024723,1724670632803,-392.61063228,0.00010099,2]
[336024724,1724670632814,-150.0,0.00010107,2]
[336024725,1724670632823,-150.0,0.00010107,2]
[336024726,1724670632833,-150.0,0.00010107,2]
[336024727,1724670632842,-736.7941891,0.0001011,2]
[336024728,1724670632855,-150.76873542,0.0001011,2]
[336024729,1724670632865,-311.48939823,0.0001011,2]
[336024730,1724670632874,-392.61063228,0.0001011,2]
[336024731,1724670632883,-150.0,0.00010119,2]
[336024732,1724670632891,-150.0,0.0001012,2]
[336024733,1724670632901,-887.56292452,0.00010121,2]
[336024734,1724670632910,-311.48939823,0.00010121,2]
[336024735,1724670632919,-392.61063228,0.00010121,2]
[336024736,1724670632928,-150.0,0.00010123,2]
[336024737,1724670632937,-182.02759949,0.00010132,2]
[336024742,1724670638139,-3222.84,0.00010087,2]
[336024743,1724670638149,-705.53532503,0.00010132,2]
[336024744,1724670638159,-311.48939823,0.00010132,2]
[336024745,1724670638169,-392.61063228,0.00010132,2]
[336024746,1724670638179,-150.0,0.00010132,2]
[336024747,1724670638189,-150.0,0.00010139,2]
[336024748,1724670638199,-887.56292452,0.00010143,2]
[336024749,1724670638208,-311.48939823,0.00010143,2]
[336024750,1724670638217,-392.61063228,0.00010143,2]
[336024751,1724670638227,-887.56292452,0.00010154,2]
[336024752,1724670638237,-311.48939823,0.00010154,2]
[336024753,1724670638247,-392.61063228,0.00010154,2]
[336024754,1724670638258,-150.0,0.00010154,2]
[336024755,1724670638267,-150.0,0.00010162,2]
[336024756,1724670638277,-150.0,0.00010162,2]
[336024757,1724670638287,-887.56292452,0.00010165,2]
[336024758,1724670638297,-311.48939823,0.00010165,2]
[336024759,1724670638307,-392.61063228,0.00010165,2]
[336024760,1724670638316,-150.0,0.0001017,2]
[336024761,1724670638326,-887.56292452,0.00010176,2]
[336024762,1724670638336,-311.48939823,0.00010176,2]
[336024763,1724670638345,-392.61063228,0.00010176,2]
[336024764,1724670638355,-150.0,0.00010177,2]
[336024765,1724670638365,-150.0,0.00010186,2]
[336024766,1724670638374,-623.91100188,0.00010187,2]
[336024767,1724670638390,-263.65192264,0.00010187,2]
[336024768,1724670638399,-311.48939823,0.00010187,2]
[336024769,1724670638409,-392.61063228,0.00010187,2]
[336024770,1724670638419,-150.0,0.00010187,2]
[336024771,1724670638428,-150.0,0.00010193,2]
[336024772,1724670638438,-887.56292452,0.00010198,2]
[336024773,1724670638448,-311.48939823,0.00010198,2]
[336024774,1724670638458,-392.61063228,0.00010198,2]
[336024775,1724670638479,-150.0,0.00010202,2]
[336024776,1724670638489,-124.51056493,0.00010209,2]
[336024777,1724670638501,-763.05235959,0.00010209,2]
[336024778,1724670638510,-311.48939823,0.00010209,2]
[336024779,1724670638520,-392.61063228,0.00010209,2]
[336024780,1724670638529,-150.0,0.00010217,2]
[336024781,1724670638539,-887.56292452,0.00010221,2]
[336024782,1724670638548,-311.48939823,0.00010221,2]
[336024783,1724670638558,-392.61063228,0.00010221,2]
[336024785,1724670638568,-887.56292452,0.00010232,2]
[336024787,1724670638578,-311.48939823,0.00010232,2]
[336024789,1724670638587,-392.61063228,0.00010232,2]
[336024791,1724670638597,-150.0,0.00010233,2]
[336024793,1724670638607,-150.0,0.00010235,2]
[336024795,1724670638616,-887.56292452,0.00010243,2]
[336024797,1724670638626,-311.48939823,0.00010243,2]
[336024799,1724670638636,-392.61063228,0.00010243,2]
[336024801,1724670638645,-150.0,0.00010249,2]
[336024803,1724670638655,-887.56292452,0.00010254,2]
[336024805,1724670638666,-311.48939823,0.00010254,2]
[336024807,1724670638676,-392.61063228,0.00010254,2]
[336024809,1724670638686,-150.0,0.00010254,2]
[336024811,1724670638701,-150.0,0.00010254,2]
[336024813,1724670638714,-150.0,0.00010264,2]
[336024816,1724670638723,-887.56292452,0.00010265,2]
[336024819,1724670638733,-311.48939823,0.00010265,2]
[336024822,1724670638743,-392.61063228,0.00010265,2]
[336024823,1724670638752,-887.56292452,0.00010276,2]
[336024824,1724670638761,-311.48939823,0.00010276,2]
[336024825,1724670638770,-392.61063228,0.00010276,2]
[336024826,1724670638780,-150.0,0.0001028,2]
[336024827,1724670638790,-887.56292452,0.00010287,2]
[336024828,1724670638800,-311.48939823,0.00010287,2]
[336024829,1724670638810,-392.61063228,0.00010287,2]
[336024830,1724670638820,-150.0,0.00010287,2]
[336024831,1724670638829,-150.0,0.00010292,2]
[336024832,1724670638839,-150.0,0.00010296,2]
[336024833,1724670638850,-887.56292452,0.00010298,2]
[336024834,1724670638861,-311.48939823,0.00010298,2]
[336024835,1724670638871,-392.61063228,0.00010298,2]
[336024836,1724670638884,-887.56292452,0.00010309,2]
[336024837,1724670638895,-311.48939823,0.00010309,2]
[336024838,1724670638904,-392.61063228,0.00010309,2]
[336024839,1724670638913,-150.0,0.00010311,2]
[336024840,1724670638923,-150.0,0.00010315,2]
[336024841,1724670638932,-887.56292452,0.0001032,2]
[336024842,1724670638942,-311.48939823,0.0001032,2]
[336024843,1724670638952,-392.61063228,0.0001032,2]
[336024844,1724670638962,-150.0,0.00010327,2]
[336024845,1724670638971,-150.0,0.00010327,2]
[336024846,1724670638982,-150.0,0.00010327,2]
[336024847,1724670638992,-887.56292452,0.00010332,2]
[336024848,1724670639003,-311.48939823,0.00010332,2]
[336024849,1724670639013,-392.61063228,0.00010332,2]
[336024850,1724670639023,-887.56292452,0.00010343,2]
[336024851,1724670639033,-311.48939823,0.00010343,2]
[336024852,1724670639044,-392.61063228,0.00010343,2]
[336024853,1724670639055,-150.0,0.00010343,2]
[336024854,1724670639066,-150.0,0.0001035,2]
[336024855,1724670639076,-519.75809164,0.00010354,2]
[336024856,1724670639089,-367.80483288,0.00010354,2]
[336024857,1724670639099,-311.48939823,0.00010354,2]
[336024858,1724670639108,-323.01937108,0.00010354,2]
[336024859,1724670639254,-69.5912612,0.00010354,2]
[336024860,1724670639265,-150.0,0.00010359,2]
[336024861,1724670639275,-887.56292452,0.00010365,2]
[336024862,1724670639285,-311.48939823,0.00010365,2]
[336024863,1724670639295,-392.61063228,0.00010365,2]
[336024864,1724670639306,-150.0,0.00010374,2]
[336024865,1724670639315,-887.56292452,0.00010376,2]
[336024866,1724670639325,-311.48939823,0.00010376,2]
[336024867,1724670639334,-392.61063228,0.00010376,2]
[336024868,1724670639344,-150.0,0.00010376,2]
[336024869,1724670639354,-887.56292452,0.00010387,2]
[336024870,1724670639365,-311.48939823,0.00010387,2]
[336024871,1724670639374,-392.61063228,0.00010387,2]
[336024872,1724670639384,-150.0,0.00010387,2]
[336024873,1724670639393,-150.0,0.0001039,2]
[336024874,1724670639403,-887.56292452,0.00010398,2]
[336024875,1724670639413,-311.48939823,0.00010398,2]
[336024876,1724670639423,-392.61063228,0.00010398,2]
[336024877,1724670639433,-150.0,0.00010406,2]
[336024878,1724670639444,-150.0,0.00010408,2]
[336024879,1724670639454,-887.56292452,0.00010409,2]
[336024880,1724670639466,-311.48939823,0.00010409,2]
[336024881,1724670639476,-392.61063228,0.00010409,2]
[336024882,1724670639487,-887.56292452,0.0001042,2]
[336024883,1724670639497,-311.48939823,0.0001042,2]
[336024884,1724670639507,-392.61063228,0.0001042,2]
[336024885,1724670639517,-150.0,0.00010421,2]
[336024886,1724670639527,-887.56292452,0.00010431,2]
[336024887,1724670639537,-311.48939823,0.00010431,2]
[336024888,1724670639547,-392.61063228,0.00010431,2]
[336024889,1724670639557,-150.0,0.00010437,2]
[336024890,1724670639567,-150.0,0.00010437,2]
[336024891,1724670639579,-150.0,0.00010437,2]
[336024892,1724670639589,-150.0,0.00010437,2]
[336024893,1724670639599,-150.0,0.00010437,2]
[336024894,1724670639608,-887.56292452,0.00010443,2]
[336024895,1724670639618,-311.48939823,0.00010443,2]
[336024896,1724670639629,-392.61063228,0.00010443,2]
[336024897,1724670639639,-150.0,0.00010453,2]
[336024898,1724670639648,-887.56292452,0.00010454,2]
[336024899,1724670639657,-311.48939823,0.00010454,2]
[336024900,1724670639666,-392.61063228,0.00010454,2]
[336024901,1724670639681,-887.56292452,0.00010465,2]
[336024902,1724670639701,-311.48939823,0.00010465,2]
[336024903,1724670639723,-209.95768278,0.00010465,2]
[336024904,1724670639751,-182.6529495,0.00010465,2]
[336024905,1724670639774,-150.0,0.00010466,2]
[336024906,1724670639797,-150.0,0.00010468,2]
[336024907,1724670639819,-155.0,0.00010471,2]
[336024908,1724670639842,-155.0,0.00010471,2]
[336024909,1724670639865,-6242.81632507,0.00010471,2]
[336024910,1724670639884,-398.82036052,0.00010471,2]
[336024911,1724670639896,-343.85707999,0.00010471,2]
[336024912,1724670639908,-675.54813812,0.00010471,2]
[336024913,1724670639920,-9257.565367,0.00010471,2]
[336024914,1724670639936,-2111.13867946,0.00010471,2]
[336024915,1724670639949,-795.2682055,0.00010471,2]
[336024916,1724670639962,-1007.38297438,0.00010471,2]
[336024917,1724670639974,-3086.63756635,0.00010471,2]
[336024918,1724670639984,-529.32,0.00010472,2]
[336024919,1724670639994,-887.56292452,0.00010476,2]
[336024920,1724670640004,-311.48939823,0.00010476,2]
[336024921,1724670640014,-392.61063228,0.00010476,2]
[336024922,1724670640023,-150.0,0.00010484,2]
[336024924,1724670640033,-887.56292452,0.00010487,2]
[336024925,1724670640042,-311.48939823,0.00010487,2]
[336024926,1724670640052,-392.61063228,0.00010487,2]
[336024927,1724670640062,-150.0,0.00010487,2]
[336024928,1724670640071,-887.56292452,0.00010498,2]
[336024929,1724670640082,-311.48939823,0.00010498,2]
[336024930,1724670640092,-392.61063228,0.00010498,2]
[336024931,1724670640101,-150.0,0.00010498,2]
[336024932,1724670640111,-150.0,0.000105,2]
[336024933,1724670640121,-179.19,0.00010502,2]
[336024934,1724670640131,-1500.0,0.00010505,2]
[336024935,1724670640140,-402.81065004,0.00010505,2]
[336024936,1724670640150,-192.96907921,0.00010505,2]
[336024937,1724670640162,-887.56292452,0.00010509,2]
[336024938,1724670640171,-311.48939823,0.00010509,2]
[336024939,1724670640181,-392.61063228,0.00010509,2]
[336024940,1724670640190,-150.0,0.00010515,2]
[336024941,1724670640200,-887.56292452,0.0001052,2]
[336024942,1724670640211,-311.48939823,0.0001052,2]
[336024943,1724670640222,-392.61063228,0.0001052,2]
[336024944,1724670640231,-150.0,0.00010524,2]
[336024945,1724670640241,-150.0,0.00010531,2]
[336024946,1724670640251,-887.56292452,0.00010531,2]
[336024947,1724670640260,-311.48939823,0.00010531,2]
[336024948,1724670640270,-392.61063228,0.00010531,2]
[336024949,1724670640280,-500.0,0.00010534,2]
[336024950,1724670640289,-600.0,0.00010534,2]
[336024951,1724670640298,-887.56292452,0.00010542,2]